bitfinex/quotes_SOLUSD_20251128
["timestamp","ask_amount","ask_price","bid_price","bid_amount"]
[1764334969552,39.38057861,140.96,140.95,0.03016114]
[1764334970478,46.47478973,140.96,140.95,0.03016114]
[1764334971974,46.75911287,140.96,140.95,0.03016114]
[1764334978379,58.68905779,140.96,140.95,0.03016114]
[1764334980575,46.75911287,140.96,140.95,0.03016114]
[1764334986098,55.56905779,140.96,140.95,0.03016114]
[1764334993101,53.40269367,140.96,140.95,0.03016114]
[1764334993294,9.09426806,140.95,140.93,37.94435262]
[1764334993504,13.38590508,140.94,140.93,37.94435262]
[1764334994018,34.71468827,140.94,140.93,37.94435262]
[1764334994817,43.52463319,140.94,140.93,37.94435262]
[1764334995624,47.2330592,140.94,140.93,37.94435262]
[1764334997320,25.32153234,140.94,140.93,37.94435262]
[1764334997534,28.19789646,140.94,140.93,37.94435262]
[1764334998662,27.48789646,140.94,140.93,37.94435262]
[1764334998949,34.58311428,140.94,140.93,37.94435262]
[1764334999107,35.29311428,140.94,140.93,37.94435262]
[1764334999532,48.72561416,140.94,140.93,37.94435262]
[1764334999840,48.72561416,140.94,140.93,38.64435262]
[1764335000013,48.72561416,140.94,140.93,37.94435262]
[1764335001430,50.89197828,140.94,140.93,37.94435262]
[1764335001645,51.60197828,140.94,140.93,37.94435262]
[1764335002332,60.4119232,140.94,140.93,37.94435262]
[1764335002743,44.1030592,140.94,140.93,37.94435262]
[1764335009954,50.89197828,140.94,140.93,37.94435262]
[1764335010565,41.3460732,140.94,140.93,38.64435262]
[1764335011443,48.44129102,140.94,140.93,37.94435262]
[1764335011761,50.60765514,140.94,140.93,37.94435262]
[1764335012060,50.60765514,140.94,140.93,38.64435262]
[1764335012461,48.44129102,140.94,140.93,38.64435262]
[1764335013640,50.60765514,140.94,140.93,38.64435262]
[1764335015038,43.51243732,140.94,140.93,38.64435262]
[1764335015458,50.89197828,140.94,140.93,37.94435262]
[1764335015662,51.60197828,140.94,140.93,37.94435262]
[1764335016650,52.1139724,140.94,140.93,37.94435262]
[1764335019850,52.8239724,140.94,140.93,37.94435262]
[1764335024661,41.63039634,140.94,140.93,38.61435262]
[1764335024865,41.63039634,140.94,140.93,37.94435262]
[1764335026774,48.72561416,140.94,140.93,37.94435262]
[1764335037285,52.8339724,140.94,140.93,37.94435262]
[1764335039585,61.64391732,140.94,140.93,37.94435262]
[1764335046392,58.25555908,140.94,140.93,37.94435262]
[1764335046569,61.64391732,140.94,140.93,37.94435262]
[1764335052300,45.33505332,140.94,140.93,37.94435262]
[1764335067921,45.33505332,140.94,140.93,34.23565262]
[1764335076220,66.65505332,140.94,140.93,34.23565262]
[1764335076429,45.33505332,140.94,140.93,34.23565262]
[1764335076724,41.94669508,140.94,140.93,34.23565262]
[1764335076926,44.11587997,140.94,140.93,34.23565262]
[1764335078801,47.23587997,140.94,140.93,34.23565262]
[1764335081633,41.22669508,140.94,140.93,34.23565262]
[1764335081820,41.22669508,140.94,140.93,34.91565262]
[1764335082025,40.94237194,140.94,140.93,34.91565262]
[1764335082236,57.25123594,140.94,140.93,34.91565262]
[1764335082535,57.53555908,140.94,140.93,34.91565262]
[1764335083034,57.53555908,140.94,140.93,34.23565262]
[1764335083830,41.3460732,140.94,140.93,34.91565262]
[1764335084033,21.32878319,140.94,140.93,44.18055879]
[1764335084509,3.70716394,140.98,140.93,61.91986199]
[1764335084837,3.70716394,140.98,140.96,2.16918489]
[1764335085045,3.70716394,140.98,140.96,5.28918489]
[1764335085253,37.62703774,140.99,140.97,2.16918489]
[1764335085432,16.308864,140.99,140.96,3.12]
[1764335085753,37.62552296,140.99,140.97,2.16918489]
[1764335085944,37.62552296,140.99,140.96,5.28918489]
[1764335086549,37.62552296,140.99,140.96,12.383282]
[1764335087336,16.308864,140.97,140.94,7.09508151]
[1764335087535,16.308864,140.97,140.95,5.28918489]
[1764335087945,16.308864,140.97,140.95,10.21469121]
[1764335088146,16.308864,140.97,140.95,12.3838761]
[1764335088958,16.308864,140.97,140.96,2.16918489]
[1764335091354,37.62703774,140.97,140.96,2.16918489]
[1764335092935,37.62703774,140.97,140.95,10.21469121]
[1764335093140,105.60664425,141.0,140.96,2.16918489]
[1764335093335,105.60664425,141.0,140.99,2.16918489]
[1764335094035,126.92178866,141.0,140.99,2.16918489]
[1764335094239,123.21514441,141.0,140.99,2.16918489]
[1764335097739,21.31514441,141.0,140.99,2.16918489]
[1764335098564,21.31514441,141.0,140.98,5.28918489]
[1764335099059,16.308864,141.01,140.98,12.38231051]
[1764335100569,3.70613578,141.02,141.0,2.16918489]
[1764335100759,101.9,141.03,141.01,5.28918489]
[1764335100959,101.9,141.03,141.02,2.16918489]
[1764335101361,101.9,141.03,141.01,5.28918489]
[1764335101697,16.308864,141.04,141.01,5.28918489]
[1764335101871,0.69,141.06,141.03,2.16918489]
[1764335102069,16.308864,141.04,141.03,2.16918489]
[1764335102259,25.01272684,141.06,141.03,9.25971411]
[1764335102456,0.2,141.1,141.05,2.16918489]
[1764335102663,0.2,141.1,141.09,2.16918489]
[1764335103176,0.2,141.1,141.03,24.81725403]
[1764335103376,2.16918489,141.08,141.03,3.12]
[1764335103558,18.47804889,141.08,141.03,5.28918489]
[1764335103757,0.69,141.07,141.03,5.28918489]
[1764335104158,7.77891641,141.07,141.03,5.28918489]
[1764335104352,7.08891641,141.07,141.03,12.37975013]
[1764335104559,7.77891641,141.07,141.03,12.37975013]
[1764335104752,7.77891641,141.07,141.03,9.25975013]
[1764335104953,7.77891641,141.07,141.03,12.37975013]
[1764335105965,7.08891641,141.07,141.03,12.37975013]
[1764335106164,7.77891641,141.07,141.03,12.37975013]
[1764335106379,7.08891641,141.07,141.03,9.25975013]
[1764335106566,0.69,141.06,141.03,12.37975013]
[1764335106764,7.77891641,141.07,141.03,12.37975013]
[1764335108193,7.77891641,141.07,141.03,10.21056524]
[1764335108675,0.69,141.06,141.02,3.12]
[1764335108861,2.85918489,141.06,141.02,3.12]
[1764335109263,2.85918489,141.05,141.0,9.26138347]
[1764335109464,2.85918489,141.05,141.01,3.12]
[1764335109678,0.69,141.04,141.01,3.12]
[1764335110080,0.69,141.05,141.01,5.28918489]
[1764335110478,0.69,141.05,141.01,12.38059403]
[1764335112892,7.77973126,141.05,141.01,12.38059403]
[1764335113084,26.25778015,141.05,141.01,7.09140914]
[1764335113284,18.47804889,141.05,141.01,10.21140914]
[1764335113472,18.47804889,141.05,141.01,10.91140914]
[1764335113986,16.308864,141.05,141.02,0.67]
[1764335114186,16.308864,141.05,141.02,7.76118415]
[1764335114878,23.39861403,141.05,141.02,0.67]
[1764335115289,24.11861403,141.05,141.02,0.67]
[1764335116275,24.11861403,141.05,141.02,7.76118213]
[1764335119698,26.28779892,141.05,141.02,0.67]
[1764335120479,19.19804889,141.05,141.02,7.76110382]
[1764335120801,26.28782217,141.05,141.02,0.67]
[1764335121976,24.11863728,141.05,141.02,0.67]
[1764335122175,26.28782217,141.05,141.02,7.76111329]
[1764335123487,24.11863728,141.05,141.02,7.76111329]
[1764335126918,24.11863728,141.05,141.02,0.67]
[1764335127512,24.11863728,141.05,141.02,7.76113001]
[1764335128021,23.39863728,141.05,141.01,12.38072913]
[1764335128320,2.88918489,141.04,141.01,3.12]
[1764335128501,9.97960629,141.04,141.01,3.12]
[1764335128693,0.72,141.03,141.0,10.21216208]
[1764335128894,0.72,141.03,141.0,10.88216208]
[1764335129090,7.0904214,141.04,141.0,10.21216208]
[1764335129412,7.0904214,141.04,141.01,0.67]
[1764335129413,9.97960629,141.04,141.01,0.67]
[1764335129617,0.72,141.04,141.01,0.67]
[1764335130601,0.72,141.04,141.01,7.76167336]
[1764335131218,0.72,141.04,141.01,0.67]
[1764335131527,0.72,141.04,141.01,7.76152626]
[1764335139838,0.72,141.04,141.01,7.09152626]
[1764335140747,0.72,141.04,141.01,7.77152626]
[1764335141848,3.38311606,141.03,141.01,7.77152626]
[1764335143017,3.38311606,141.03,141.01,7.09152626]
[1764335143411,3.38311606,141.03,141.01,7.77152626]
[1764335143742,4.03311606,141.03,141.01,7.09152626]
[1764335145351,4.03311606,141.03,141.01,7.77152626]
[1764335146149,0.65,141.03,141.01,7.77152626]
[1764335147154,0.65,141.03,141.01,7.09152626]
[1764335149651,16.308864,141.04,141.02,0.68]
[1764335149841,16.308864,141.04,141.03,3.12]
[1764335151341,16.308864,141.04,141.03,10.21068992]
[1764335151932,4.35532002,141.05,141.03,10.21068992]
[1764335153057,16.308864,141.04,141.03,10.89068992]
[1764335153253,16.308864,141.04,141.03,10.21068992]
[1764335154541,4.35532002,141.05,141.03,10.21068992]
[1764335155437,3.70532002,141.05,141.03,10.89068992]
[1764335155636,3.70532002,141.05,141.03,14.27380598]
[1764335156054,3.70532002,141.05,141.03,10.89068992]
[1764335156656,3.70532002,141.05,141.04,0.68]
[1764335156962,20.01418402,141.05,141.04,0.68]
[1764335157155,20.01418402,141.05,141.03,10.21068992]
[1764335157357,20.01418402,141.05,141.03,10.89068992]
[1764335157559,20.01418402,141.05,141.04,0.68]
[1764335159044,16.308864,141.06,141.04,0.68]
[1764335159245,16.308864,141.05,141.03,28.61741473]
[1764335160348,16.308864,141.05,141.04,0.68]
[1764335160849,16.308864,141.05,141.04,7.77018718]
[1764335161274,0.65,141.07,141.04,7.77018718]
[1764335161470,3.70439471,141.08,141.05,7.18311606]
[1764335161851,0.2,141.1,141.07,3.38311606]
[1764335162072,0.2,141.1,141.08,6.50311606]
[1764335162567,0.2,141.1,141.08,7.18311606]
[1764335162768,0.2,141.1,141.08,14.2708482]
[1764335164677,0.2,141.1,141.08,10.20773214]
[1764335164974,0.2,141.1,141.09,3.12]
[1764335166877,0.2,141.1,141.09,10.20767453]
[1764335167253,0.2,141.1,141.09,14.27079059]
[1764335168004,0.2,141.1,141.09,10.20767453]
[1764335168577,0.2,141.1,141.09,10.88767453]
[1764335169494,0.2,141.1,141.09,14.27079059]
[1764335170412,0.2,141.1,141.09,10.20767453]
[1764335170577,0.2,141.1,141.09,10.87767453]
[1764335171084,0.2,141.1,141.09,7.08767453]
[1764335171294,0.2,141.1,141.09,10.20767453]
[1764335172292,0.2,141.1,141.09,3.12]
[1764335172494,0.2,141.1,141.09,10.20767453]
[1764335174503,0.2,141.1,141.09,14.31079059]
[1764335174798,0.2,141.1,141.09,7.08767453]
[1764335175002,0.2,141.1,141.09,10.20767453]
[1764335175406,0.2,141.1,141.09,3.12]
[1764335175407,4.29311606,141.1,141.09,3.12]
[1764335175613,4.29311606,141.1,141.05,21.10692823]
[1764335175790,0.71,141.09,141.06,3.12]
[1764335176414,0.71,141.09,141.07,7.08867937]
[1764335177712,0.71,141.09,141.08,10.20817692]
[1764335177908,0.91,141.1,141.08,10.20817692]
[1764335178896,0.71,141.09,141.08,10.20817692]
[1764335180519,0.71,141.09,141.07,7.08867937]
[1764335180819,0.2,141.1,141.08,3.12]
[1764335180987,0.91,141.1,141.08,3.12]
[1764335182219,0.91,141.1,141.08,10.20773711]
[1764335184339,0.71,141.09,141.08,10.20773711]
[1764335185022,0.91,141.1,141.08,10.20773711]
[1764335186031,0.71,141.09,141.08,10.20773711]
[1764335192735,0.71,141.09,141.08,3.12]
[1764335193736,0.2,141.1,141.08,10.20817692]
[1764335193934,0.2,141.1,141.09,0.72]
[1764335194315,0.2,141.1,141.08,13.59129298]
[1764335194541,0.2,141.1,141.08,14.31129298]
[1764335194723,0.2,141.1,141.09,4.10311606]
[1764335195719,0.2,141.1,141.09,11.19079059]
[1764335197042,0.2,141.1,141.09,7.08767453]
[1764335197344,0.2,141.1,141.09,10.20767453]
[1764335197546,0.91,141.1,141.09,7.08767453]
[1764335197840,0.91,141.1,141.09,10.20767453]
[1764335199662,0.2,141.1,141.09,10.20767453]
[1764335207469,0.2,141.1,141.09,3.12]
[1764335207645,16.308864,141.09,141.07,3.12]
[1764335207843,2.1628907,141.08,141.07,3.12]
[1764335208060,2.8328907,141.08,141.07,3.12]
[1764335211267,0.67,141.08,141.07,10.20867937]
[1764335213788,0.67,141.08,141.05,24.81355971]
[1764335213973,0.67,141.08,141.07,3.12]
[1764335216191,2.8328907,141.08,141.07,3.12]
[1764335221325,16.308864,141.09,141.07,3.12]
[1764335221600,0.67,141.08,141.07,3.12]
[1764335222188,19.1417547,141.08,141.03,17.72643183]
[1764335222394,2.1628907,141.05,141.03,3.12]
[1764335222592,16.978864,141.07,141.03,3.12]
[1764335222789,2.1628907,141.05,141.03,3.12]
[1764335222994,2.1628907,141.04,141.03,3.12]
[1764335223193,2.8328907,141.04,141.03,3.12]
[1764335223699,2.8328907,141.04,141.03,10.21068992]
[1764335224267,2.8328907,141.04,141.03,3.12]
[1764335224469,2.8328907,141.04,141.01,7.09122333]
[1764335224676,2.8328907,141.04,140.99,17.73117364]
[1764335224677,2.1628907,141.02,140.99,7.09248085]
[1764335224885,2.1628907,141.02,141.0,3.12]
[1764335225082,2.8328907,141.02,141.0,3.12]
[1764335225775,2.8328907,141.02,141.0,10.21180321]
[1764335226375,0.67,141.02,141.0,10.21180321]
[1764335226585,2.8328907,141.02,141.0,10.21180321]
[1764335229905,0.67,141.02,141.0,10.21180321]
[1764335238053,18.4717547,141.01,140.94,8.80994492]
[1764335238341,16.308864,140.98,140.93,37.35565262]
[1764335238508,2.1628907,140.94,140.93,34.23565262]
[1764335239052,3.14721384,140.94,140.93,34.23565262]
[1764335239236,40.78182868,140.94,140.93,34.23565262]
[1764335240322,56.68699142,140.94,140.93,34.23565262]
[1764335240529,40.37812742,140.94,140.93,34.23565262]
[1764335241913,40.37812742,140.94,140.93,30.52805262]
[1764335242119,60.73223447,140.94,140.93,0.70854193]
[1764335243969,30.14837511,140.93,140.91,0.1]
[1764335244146,23.02872156,140.92,140.9,0.1]
[1764335244344,31.45288369,140.91,140.9,0.1]
[1764335244559,32.15288369,140.91,140.9,0.1]
[1764335244868,39.24961209,140.91,140.9,0.1]
[1764335248262,42.09405653,140.91,140.9,0.1]
[1764335248443,50.90400145,140.91,140.89,0.1]
[1764335248645,0.28432314,140.89,140.84,0.1]
[1764335248849,25.92132089,140.89,140.84,0.1]
[1764335249064,29.46616993,140.89,140.84,0.1]
[1764335249574,25.40313206,140.87,140.86,1e-08]
[1764335249883,29.44837511,140.86,140.84,0.1]
[1764335250173,23.02872156,140.85,140.84,0.1]
[1764335250358,51.18258011,140.85,140.84,0.1]
[1764335250775,90.27591676,140.85,140.81,39.15289256]
[1764335250958,27.56602276,140.82,140.81,9.43338187]
[1764335251271,60.84707028,140.82,140.81,9.43338187]
[1764335251455,61.54707028,140.82,140.81,9.43338187]
[1764335251657,70.98045215,140.82,140.81,9.43338187]
[1764335251874,70.98045215,140.82,140.78,0.1]
[1764335252078,27.28169962,140.79,140.78,0.1]
[1764335252375,57.85858385,140.79,140.78,0.1]
[1764335252676,32.64694665,140.79,140.78,0.1]
[1764335253174,2.96809163,140.79,140.78,0.1]
[1764335253553,21.43984633,140.79,140.78,0.1]
[1764335255256,22.13984633,140.79,140.78,0.1]
[1764335255470,28.54262351,140.79,140.78,0.1]
[1764335255753,29.52694665,140.79,140.78,0.1]
[1764335257484,41.45689157,140.79,140.78,0.1]
[1764335257896,30.48405595,140.79,140.78,0.1]
[1764335258099,32.64694665,140.79,140.78,0.1]
[1764335260685,33.87988822,140.79,140.78,0.1]
[1764335260999,22.39695563,140.79,140.78,0.1]
[1764335261298,19.27695563,140.79,140.78,0.1]
[1764335261608,19.27695563,140.79,140.78,0.81]
[1764335261779,19.27695563,140.79,140.78,0.1]
[1764335262096,19.27695563,140.79,140.75,2.96809163]
[1764335262097,16.308864,140.76,140.75,2.96809163]
[1764335262301,16.308864,140.72,140.68,41.17143251]
[1764335262505,19.70469627,140.7,140.69,0.71]
[1764335262679,16.308864,140.7,140.69,0.71]
[1764335263309,25.40313206,140.69,140.68,40.46143251]
[1764335263485,29.46896433,140.69,140.68,40.46143251]
[1764335264304,0.28432314,140.68,140.56,61.47466872]
[1764335264503,16.59318714,140.66,140.65,0.71]
[1764335264695,3.39583227,140.66,140.65,0.71]
[1764335265197,0.28432314,140.65,140.6,7.11235099]
[1764335265401,3.39583227,140.62,140.61,0.71]
[1764335265798,3.39583227,140.62,140.61,0.21]
[1764335266014,3.39583227,140.63,140.61,0.21]
[1764335266225,3.39583227,140.64,140.61,0.21]
[1764335266526,16.308864,140.66,140.61,0.21]
[1764335266888,16.308864,140.66,140.62,10.50719622]
[1764335267087,16.308864,140.66,140.62,28.28560611]
[1764335267913,16.308864,140.66,140.63,0.71]
[1764335268113,16.308864,140.66,140.63,4.10583227]
[1764335268288,16.308864,140.66,140.63,0.71]
[1764335268486,6.85498083,140.69,140.64,3.39583227]
[1764335268689,16.308864,140.66,140.64,3.39583227]
[1764335268885,16.308864,140.66,140.65,7.81984713]
[1764335270020,16.308864,140.66,140.65,11.2156794]
[1764335270230,16.308864,140.68,140.65,7.81984713]
[1764335270402,3.71498083,140.69,140.66,0.71]
[1764335270605,27.29487922,140.71,140.66,0.71]
[1764335270796,16.308864,140.68,140.66,0.71]
[1764335270990,16.308864,140.68,140.66,7.81921006]
[1764335271504,16.308864,140.68,140.67,0.71]
[1764335272104,27.47133925,140.71,140.67,0.71]
[1764335272320,15.34577719,140.74,140.68,3.39583227]
[1764335272503,17.77397442,140.73,140.69,0.71]
[1764335272716,37.47867069,140.73,140.69,0.71]
[1764335272925,38.14867069,140.73,140.69,0.71]
[1764335273432,45.2548602,140.73,140.69,0.71]
[1764335274137,44.5848602,140.73,140.69,0.71]
[1764335274345,44.5848602,140.73,140.66,0.71]
[1764335274346,3.39583227,140.7,140.66,0.71]
[1764335274509,3.39583227,140.71,140.66,0.71]
[1764335274713,4.06583227,140.71,140.66,0.71]
[1764335274932,0.67,140.7,140.66,0.71]
[1764335275118,3.39583227,140.71,140.66,0.71]
[1764335275315,10.50294914,140.71,140.66,7.81932301]
[1764335275518,0.67,140.7,140.66,7.10932301]
[1764335275840,7.77711687,140.71,140.67,0.71]
[1764335277037,38.14867069,140.73,140.67,4.10583227]
[1764335277228,34.08283842,140.73,140.69,3.39583227]
[1764335277434,34.08283842,140.73,140.69,10.5032757]
[1764335277637,34.75283842,140.73,140.7,0.71]
[1764335277827,16.308864,140.71,140.7,0.71]
[1764335278021,28.59052415,140.74,140.7,0.71]
[1764335278336,16.308864,140.73,140.7,0.71]
[1764335279120,16.978864,140.73,140.7,0.71]
[1764335279317,16.978864,140.73,140.69,3.39583227]
[1764335279536,27.4805248,140.73,140.69,0.71]
[1764335280050,0.67,140.72,140.69,0.71]
[1764335280217,26.8105248,140.73,140.69,0.71]
[1764335280427,0.28432314,140.69,140.63,0.71]
[1764335280631,19.70469627,140.67,140.62,10.50719622]
[1764335280828,3.39583227,140.66,140.62,7.11136395]
[1764335281048,16.308864,140.69,140.64,3.39583227]
[1764335281354,16.308864,140.69,140.63,0.71]
[1764335281355,16.308864,140.69,140.66,3.39583227]
[1764335281550,16.308864,140.69,140.66,10.5048146]
[1764335281751,16.308864,140.69,140.67,0.71]
[1764335281953,16.308864,140.7,140.67,4.10583227]
[1764335282455,3.39583227,140.72,140.68,0.71]
[1764335282751,24.08476784,140.73,140.68,0.71]
[1764335283049,27.48060011,140.73,140.68,0.71]
[1764335283256,0.67,140.72,140.68,0.71]
[1764335284051,7.77632534,140.72,140.68,7.81821651]
[1764335284248,11.17215761,140.72,140.68,7.10821651]
[1764335284447,7.77632534,140.72,140.68,7.81821651]
[1764335284749,16.308864,140.73,140.69,0.71]
[1764335284950,16.308864,140.72,140.69,4.10583227]
[1764335285330,16.308864,140.72,140.7,0.71]
[1764335286128,19.70469627,140.72,140.68,7.81821651]
[1764335286354,16.308864,140.72,140.69,0.71]
[1764335286658,19.70469627,140.72,140.69,0.71]
[1764335287532,19.70469627,140.72,140.68,7.10821651]
[1764335287533,20.37469627,140.72,140.68,7.10821651]
[1764335287746,16.978864,140.72,140.69,0.71]
[1764335288157,16.978864,140.72,140.69,7.81740379]
[1764335289069,3.71376656,140.74,140.7,0.71]
[1764335289290,4.38376656,140.74,140.7,0.71]
[1764335289585,7.77959883,140.74,140.7,0.71]
[1764335289884,0.67,140.73,140.7,0.71]
[1764335290190,0.67,140.73,140.69,7.81740379]
[1764335290500,7.77594889,140.73,140.68,11.21403943]
[1764335290672,16.308864,140.72,140.68,7.10820716]
[1764335290977,17.008864,140.72,140.68,7.82820716]
[1764335291568,17.008864,140.72,140.68,11.22403943]
[1764335292289,4.09583227,140.71,140.67,7.10871071]
[1764335292482,4.09583227,140.71,140.67,10.24871071]
[1764335292661,0.7,140.7,140.67,10.24871071]
[1764335293372,0.7,140.7,140.66,11.2251232]
[1764335293690,16.308864,140.68,140.64,7.25583227]
[1764335293886,23.41728225,140.68,140.64,10.96987963]
[1764335294184,0.98432314,140.67,140.62,0.69]
[1764335294405,19.70469627,140.65,140.6,0.69]
[1764335294565,19.70469627,140.65,140.6,3.83]
[1764335294765,0.7,140.64,140.6,3.83]
[1764335294986,0.7,140.64,140.56,41.76997245]
[1764335294987,3.39583227,140.63,140.58,0.69]
[1764335295289,16.308864,140.62,140.59,3.14]
[1764335295492,20.40469627,140.62,140.59,3.14]
[1764335295797,19.70469627,140.62,140.59,10.94254166]
[1764335296177,3.39583227,140.61,140.58,7.11320426]
[1764335296380,4.09583227,140.61,140.58,10.94320426]
[1764335296693,9.73173874,140.61,140.58,3.83]
[1764335296998,23.42038116,140.62,140.57,7.11370157]
[1764335296999,9.73173874,140.6,140.57,7.11370157]
[1764335297176,0.7,140.6,140.57,10.94370157]
[1764335297376,0.7,140.6,140.57,3.83]
[1764335297781,0.7,140.6,140.57,7.11383963]
[1764335298173,0.7,140.6,140.56,52.71433006]
[1764335298374,16.308864,140.6,140.58,9.03173874]
[1764335298572,16.308864,140.6,140.57,0.69]
[1764335299794,16.308864,140.61,140.59,7.11288142]
[1764335299987,0.7,140.64,140.6,3.14]
[1764335300303,9.73173874,140.66,140.61,9.03173874]
[1764335300509,9.73173874,140.66,140.61,0.69]
[1764335300679,26.04060274,140.65,140.61,0.69]
[1764335300998,3.14,140.68,140.61,0.69]
[1764335301181,9.03173874,140.68,140.62,9.03173874]
[1764335301382,16.308864,140.67,140.63,3.14]
[1764335301606,17.008864,140.67,140.63,3.14]
[1764335301908,17.008864,140.67,140.64,7.11035267]
[1764335302405,16.308864,140.67,140.64,7.11035267]
[1764335302704,17.008864,140.67,140.64,7.11035267]
[1764335303098,17.008864,140.67,140.64,7.80035267]
[1764335303299,16.308864,140.67,140.64,7.80035267]
[1764335303707,25.34060274,140.67,140.64,7.80035267]
[1764335304390,25.34060274,140.67,140.64,0.69]
[1764335304699,26.04060274,140.67,140.63,10.94067915]
[1764335305103,16.59318714,140.69,140.64,9.72173874]
[1764335305307,13.44682909,140.7,140.64,9.72173874]
[1764335305528,13.44682909,140.7,140.65,0.69]
[1764335305726,13.44682909,140.7,140.67,9.03173874]
[1764335305727,3.71509035,140.7,140.67,9.03173874]
[1764335306016,26.04060274,140.72,140.68,0.69]
[1764335306319,9.73173874,140.72,140.68,0.69]
[1764335306524,9.73173874,140.72,140.69,7.10782571]
[1764335307031,0.7,140.72,140.69,7.10782571]
[1764335307625,17.008864,140.72,140.69,7.10782571]
[1764335309793,0.7,140.71,140.68,10.93820758]
[1764335310006,17.008864,140.72,140.68,10.93820758]
[1764335310221,17.008864,140.72,140.68,19.96994632]
[1764335310417,17.008864,140.72,140.69,0.69]
[1764335311031,17.008864,140.72,140.68,10.24820758]
[1764335311230,17.008864,140.72,140.68,19.96994632]
[1764335311420,16.308864,140.72,140.69,0.69]
[1764335312229,17.008864,140.72,140.68,10.24825182]
[1764335312434,17.008864,140.72,140.69,0.69]
[1764335312633,3.84,140.75,140.7,9.03173874]
[1764335312812,16.308864,140.73,140.7,9.03173874]
[1764335313132,0.7,140.77,140.73,7.10580544]
[1764335313433,17.008864,140.77,140.73,16.13754418]
[1764335313603,17.008864,140.77,140.73,7.79580544]
[1764335313808,17.008864,140.77,140.73,16.82754418]
[1764335314246,0.7,140.76,140.73,16.82754418]
[1764335315328,0.7,140.76,140.73,16.13754418]
[1764335316413,0.7,140.76,140.68,35.54165481]
[1764335316414,0.7,140.76,140.67,1.99999999]
[1764335316710,16.308864,140.64,140.58,9.72173874]
[1764335316917,9.31606188,140.63,140.58,0.69]
[1764335317234,0.28432314,140.63,140.59,9.72173874]
[1764335317410,16.308864,140.63,140.61,9.03173874]
[1764335317605,16.308864,140.63,140.6,3.85]
[1764335317834,16.308864,140.63,140.6,0.69]
[1764335318043,16.308864,140.63,140.61,0.69]
[1764335319049,25.34060274,140.63,140.61,0.69]
[1764335319250,25.34060274,140.63,140.59,0.69]
[1764335319429,25.34060274,140.63,140.6,0.69]
[1764335319627,16.308864,140.63,140.6,0.69]
[1764335320737,9.03173874,140.64,140.6,0.69]
[1764335321246,16.998864,140.66,140.61,7.11186971]
[1764335321449,9.03173874,140.64,140.61,7.11186971]
[1764335321651,9.03173874,140.64,140.61,7.77186971]
[1764335322434,9.03173874,140.64,140.61,7.11186971]
[1764335322626,5.18465081,140.64,140.61,7.11186971]
[1764335322827,5.18465081,140.64,140.61,7.77186971]
[1764335323227,5.18465081,140.64,140.6,24.89326965]
[1764335323526,5.18465081,140.65,140.62,0.66]
[1764335323726,5.18465081,140.65,140.62,3.82]
[1764335324247,5.18465081,140.64,140.62,3.82]
[1764335324825,5.18465081,140.64,140.62,0.66]
[1764335325425,5.18465081,140.64,140.62,7.77130707]
[1764335325929,21.49351481,140.66,140.63,0.66]
[1764335326457,21.49351481,140.66,140.62,7.77130707]
[1764335326458,5.18465081,140.64,140.62,7.77130707]
[1764335327771,5.18465081,140.65,140.63,0.66]
[1764335327936,21.49351481,140.66,140.63,0.66]
[1764335328335,16.308864,140.66,140.64,3.16]
[1764335328534,16.308864,140.66,140.65,0.66]
[1764335331166,16.308864,140.66,140.64,10.27011622]
[1764335331463,5.18465081,140.65,140.63,3.82]
[1764335331669,5.18465081,140.65,140.6,12.29702634]
[1764335331670,21.49351481,140.66,140.6,12.29702634]
[1764335331842,21.49351481,140.66,140.61,3.82]
[1764335332161,28.60286505,140.66,140.61,3.82]
[1764335332365,29.29286505,140.66,140.62,0.66]
[1764335333481,16.308864,140.66,140.62,5.84465081]
[1764335333674,16.308864,140.66,140.62,0.66]
[1764335333977,21.49351481,140.66,140.63,0.66]
[1764335334482,22.18351481,140.66,140.63,0.66]
[1764335336283,22.18351481,140.66,140.63,7.77069001]
[1764335339273,29.2928628,140.66,140.62,7.11113517]